fUSD/lending_fUSD_20240127
["ID","MTS","AMOUNT","RATE_DAILY","PERIOD"]
[312866183,1706379138816,-500.0,0.00052876,31]
[312866184,1706379138842,-500.0,0.00052876,31]
[312866185,1706379138869,-500.0,0.00052876,31]
[312866186,1706379139041,-500.0,0.00052876,31]
[312866187,1706379139070,-1014.91,0.00052876,31]
[312866188,1706379139092,-500.0,0.00052876,30]
[312866189,1706379139115,-698.6,0.00052876,31]
[312866190,1706379139137,-500.0,0.00052876,31]
[312866191,1706379139162,-527.62,0.00052876,31]
[312866192,1706379139186,-500.0,0.00052876,31]
[312866193,1706379139208,-866.97,0.00052876,31]
[312866194,1706379139230,-500.0,0.00052876,31]
[312866195,1706379139255,-500.0,0.00052876,31]
[312866196,1706379139279,-500.0,0.00052876,31]
[312866197,1706379139302,-565.06062019,0.00052886,60]
[312866198,1706379139325,-157.77789166,0.000529,55]
[312866199,1706379139348,-233.0,0.000529,120]
[312866200,1706379139371,-2786.9023,0.00052978,57]
[312866201,1706379139394,-156.85207911,0.00052987,60]
[312866202,1706379139625,-155.33899776,0.00052999,60]
[312866203,1706379139649,-500000.0,0.00053,120]
[312866204,1706379139672,-154.31751203,0.00053027,60]
[312866205,1706379139695,-151.04966543,0.00053033,60]
[312866206,1706379139717,-161.46810869,0.00053083,60]
[312866207,1706379139744,-317.99164213,0.00053147,60]
[312866208,1706379139770,-659.04,0.0005315,31]
[312866209,1706379139793,-500.0,0.0005315,31]
[312866210,1706379139814,-623.67,0.0005315,31]
[312866211,1706379139838,-545.54,0.0005315,31]
[312866212,1706379139860,-500.0,0.0005315,31]
[312866213,1706379139884,-1041.23,0.0005315,31]
[312866214,1706379139906,-33261.2,0.0005315,31]
[312866215,1706379139928,-390.31631238,0.0005315,31]
[312866216,1706379139949,-12479.16,0.0005315,31]
[312866217,1706379139972,-2795.19,0.0005315,31]
[312866218,1706379139994,-628.12,0.0005315,31]
[312866219,1706379140016,-500.0,0.0005315,31]
[312866220,1706379140039,-500.0,0.0005315,31]
[312866221,1706379140061,-500.0,0.0005315,31]
[312866222,1706379140084,-500.0,0.0005315,31]
[312866223,1706379140108,-1014.91,0.0005315,31]
[312866224,1706379140132,-698.6,0.0005315,31]
[312866225,1706379140156,-500.0,0.0005315,31]
[312866226,1706379140179,-527.62,0.0005315,31]
[312866227,1706379140202,-500.0,0.0005315,31]
[312866228,1706379140224,-866.97,0.0005315,31]
[312866229,1706379140247,-500.0,0.0005315,31]
[312866230,1706379140270,-500.0,0.0005315,31]
[312866231,1706379140294,-500.0,0.0005315,31]
[312866232,1706379140316,-151.34863846,0.00053163,60]
[312866233,1706379140340,-154.31751203,0.00053184,60]
[312866234,1706379140363,-157.29174049,0.00053198,60]
[312866235,1706379140387,-306.472067,0.000532,37]
[312866236,1706379140414,-288.842229,0.000532,37]
[312866237,1706379140438,-565.06062019,0.00053219,60]
[312866238,1706379140460,-151.04966543,0.00053251,60]
[312866239,1706379140483,-515973.71407198,0.000533,31]
[312866240,1706379140506,-667608.95237195,0.000533,31]
[312866241,1706379140527,-88200.80807783,0.000533,31]
[312866242,1706379140549,-161.0027903,0.00053346,60]
[312866243,1706379140572,-233.0,0.000534,120]
[312866244,1706379140593,-151.04966543,0.00053404,60]
[312866245,1706379140616,-565.06062019,0.00053404,60]
[312866246,1706379140639,-565.06062019,0.00053405,60]
[312866247,1706379140661,-153.40585632,0.0005342,60]
[312866248,1706379140683,-155.33899776,0.0005342,60]
[312866249,1706379140706,-659.04,0.00053424,31]
[312866250,1706379140728,-500.0,0.00053424,31]
[312866251,1706379140752,-623.67,0.00053424,31]
[312866252,1706379140779,-545.54,0.00053424,31]
[312866253,1706379140806,-500.0,0.00053424,31]
[312866254,1706379140828,-1041.23,0.00053424,31]
[312866255,1706379140850,-33261.2,0.00053424,31]
[312866256,1706379140871,-12479.16,0.00053424,31]
[312866257,1706379140897,-2795.19,0.00053424,31]
[312866258,1706379140919,-628.12,0.00053424,31]
[312866259,1706379140942,-500.0,0.00053424,31]
[312866260,1706379140965,-500.0,0.00053424,31]
[312866261,1706379140992,-500.0,0.00053424,31]
[312866262,1706379141014,-358.10775732,0.00053424,31]
[312866263,1706379141037,-1014.91,0.00053424,31]
[312866264,1706379141060,-698.6,0.00053424,31]
[312866265,1706379141082,-500.0,0.00053424,31]
[312866266,1706379141105,-527.62,0.00053424,31]
[312866267,1706379141128,-538.51960493,0.00053424,31]
[312866268,1706379141152,-866.97,0.00053424,31]
[312866269,1706379141175,-500.0,0.00053424,31]
[312866270,1706379141197,-500.0,0.00053424,31]
[312866271,1706379141221,-500.0,0.00053424,31]
[312866272,1706379141244,-155.37622768,0.00053465,60]
[312866273,1706379141269,-151.0127,0.00053498,59]
[312866274,1706379141293,-151.04966543,0.00053514,60]
[312866275,1706379141317,-565.06062019,0.00053516,60]
[312866276,1706379141341,-153.40585632,0.00053584,60]
[312866277,1706379141363,-193.883,0.00053589,120]
[312866278,1706379141387,-173.63793899,0.00053592,60]
[312866279,1706379141415,-155.37622768,0.00053608,60]
[312866280,1706379141438,-565.06062019,0.00053616,60]
[312866281,1706379141461,-155.33899776,0.00053619,60]
[312866282,1706379141486,-565.06062019,0.00053682,60]
[312866283,1706379141507,-5041.12477025,0.00053687,45]
[312866284,1706379141530,-530.33480688,0.00053687,39]
[312866285,1706379141553,-491.4100975,0.00053698,120]
[312866286,1706379141579,-413.64829996,0.00053698,30]
[312866287,1706379141705,-350.34289449,0.00053698,120]
[312866288,1706379141731,-270.60491089,0.00053698,120]
[312866289,1706379141754,-360.84585383,0.00053698,120]
[312866290,1706379141778,-377.5421868,0.00053698,120]
[312866291,1706379141800,-502.15072152,0.00053698,120]
[312866292,1706379141821,-630.98393399,0.00053698,120]
[312866293,1706379141844,-521.07019166,0.00053698,120]
[312866294,1706379141866,-518.37440409,0.00053698,120]
[312866295,1706379141888,-225.73207556,0.00053698,120]
[312866296,1706379141910,-543.22,0.00053698,120]
[312866297,1706379141931,-500.0,0.00053698,120]
[312866298,1706379141953,-500.0,0.00053698,120]
[312866299,1706379141975,-464.83245936,0.00053698,120]
[312866300,1706379141998,-500.0,0.00053698,120]
[312866301,1706379142020,-500.0,0.00053698,120]
[312866302,1706379142041,-500.0,0.00053698,120]
[312866303,1706379142063,-750.85,0.00053698,120]
[312866304,1706379142086,-500.0,0.00053698,120]
[312866305,1706379142107,-500.0,0.00053698,120]
[312866306,1706379142130,-1442.38,0.00053698,120]
[312866307,1706379142152,-500.0,0.00053698,120]
[312866308,1706379142175,-500.0,0.00053698,120]
[312866309,1706379142199,-500.0,0.00053698,120]
[312866310,1706379142222,-500.0,0.00053698,120]
[312866311,1706379142245,-500.0,0.00053698,120]
[312866312,1706379142268,-500.0,0.00053698,120]
[312866313,1706379142290,-5652.0,0.00053698,120]
[312866314,1706379142313,-500.0,0.00053698,120]
[312866315,1706379142336,-515.55998297,0.00053698,120]
[312866316,1706379142358,-472.58770334,0.00053698,120]
[312866317,1706379142381,-530.85779854,0.00053698,120]
[312866318,1706379142406,-544.66395997,0.00053698,120]
[312866319,1706379142429,-525.92160172,0.00053698,120]
[312866320,1706379142451,-541.03,0.00053698,120]
[312866321,1706379142474,-500.0,0.00053698,120]
[312866322,1706379142498,-550.59392631,0.00053698,120]
[312866323,1706379142520,-500.0,0.00053698,120]
[312866324,1706379142543,-452.6909536,0.00053698,120]
[312866325,1706379142566,-500.0,0.00053698,120]
[312866326,1706379142589,-659.04,0.00053698,31]
[312866327,1706379142611,-500.0,0.00053698,31]
[312866328,1706379142633,-623.67,0.00053698,31]
[312866329,1706379142657,-545.54,0.00053698,31]
[312866330,1706379142679,-500.0,0.00053698,31]
[312866331,1706379142701,-1041.23,0.00053698,31]
[312866332,1706379142725,-33261.2,0.00053698,31]
[312866333,1706379142747,-12479.16,0.00053698,31]
[312866334,1706379142768,-2795.19,0.00053698,31]
[312866335,1706379142791,-628.12,0.00053698,31]
[312866336,1706379142814,-500.0,0.00053698,31]
[312866337,1706379142837,-500.0,0.00053698,31]
[312866338,1706379142859,-500.0,0.00053698,31]
[312866339,1706379142883,-1014.91,0.00053698,31]
[312866340,1706379142913,-698.6,0.00053698,31]
[312866341,1706379142936,-500.0,0.00053698,31]
[312866342,1706379142958,-527.62,0.00053698,31]
[312866343,1706379142981,-866.97,0.00053698,31]
[312866344,1706379143003,-500.0,0.00053698,31]
[312866345,1706379143025,-500.0,0.00053698,31]
[312866346,1706379143048,-500.0,0.00053698,31]
[312866347,1706379143071,-300.00000099,0.000537,30]
[312866348,1706379143096,-157.29174049,0.00053751,60]
[312866349,1706379143119,-156.04772983,0.00053769,60]
[312866350,1706379143142,-153.40585632,0.00053776,60]
[312866351,1706379143166,-151.0127,0.00053798,59]
[312866352,1706379143189,-20210.15757004,0.000538,60]
[312866353,1706379143212,-4725.8,0.000538,30]
[312866354,1706379143234,-151.34863846,0.00053849,60]
[312866355,1706379143256,-1275.74320562,0.00053852,120]
[312866356,1706379143280,-7643.02235472,0.0005388,120]
[312866357,1706379143303,-193.883,0.0005389,120]
[312866358,1706379143326,-3121.11034546,0.000539,31]
[312866359,1706379143350,-233.0,0.000539,120]
[312866360,1706379143373,-1380.1873902,0.000539,52]
[312866361,1706379143398,-151.04966543,0.00053943,60]
[312866362,1706379143425,-163.87206457,0.00053964,60]
[312866363,1706379143447,-153.75109056,0.00053967,60]
[312866364,1706379143470,-543.22,0.00053972,120]
[312866365,1706379143493,-500.0,0.00053972,120]
[312866366,1706379143515,-500.0,0.00053972,120]
[312866367,1706379143537,-500.0,0.00053972,120]
[312866368,1706379143561,-500.0,0.00053972,120]
[312866369,1706379143582,-750.85,0.00053972,120]
[312866370,1706379143604,-479.7446599,0.00053972,120]
[312866371,1706379143626,-500.0,0.00053972,120]
[312866372,1706379143648,-1442.38,0.00053972,120]
[312866373,1706379143670,-500.0,0.00053972,120]
[312866374,1706379143692,-500.0,0.00053972,120]
[312866375,1706379143715,-500.0,0.00053972,120]
[312866376,1706379143738,-500.0,0.00053972,120]
[312866377,1706379143762,-500.0,0.00053972,120]
[312866378,1706379143787,-273.91748211,0.00053972,120]
[312866379,1706379143810,-5652.0,0.00053972,120]
[312866380,1706379143835,-500.0,0.00053972,120]
[312866381,1706379143861,-500.0,0.00053972,120]
[312866382,1706379143886,-500.0,0.00053972,120]
[312866383,1706379143909,-659.04,0.00053972,31]
[312866384,1706379143931,-500.0,0.00053972,31]
[312866385,1706379143954,-623.67,0.00053972,31]
[312866386,1706379143978,-545.54,0.00053972,31]
[312866387,1706379144001,-500.0,0.00053972,31]
[312866388,1706379144023,-1041.23,0.00053972,31]
[312866389,1706379144045,-33261.2,0.00053972,31]
[312866390,1706379144066,-12479.16,0.00053972,31]
[312866391,1706379144087,-2795.19,0.00053972,31]
[312866392,1706379144217,-628.12,0.00053972,31]
[312866393,1706379144241,-500.0,0.00053972,31]
[312866394,1706379144264,-500.0,0.00053972,31]
[312866395,1706379144288,-500.0,0.00053972,31]
[312866396,1706379144313,-1014.91,0.00053972,31]
[312866397,1706379144338,-698.6,0.00053972,31]
[312866398,1706379144362,-500.0,0.00053972,31]
[312866399,1706379144385,-527.62,0.00053972,31]
[312866400,1706379144410,-866.97,0.00053972,31]
[312866401,1706379144433,-500.0,0.00053972,31]
[312866402,1706379144456,-500.0,0.00053972,31]
[312866403,1706379144479,-500.0,0.00053972,31]
[312866404,1706379144502,-1213062.84080209,0.0005398,30]
[312866405,1706379150762,-943.45,0.00049726,30]
[312866406,1706379150785,-359.7710561,0.0005,120]
[312866407,1706379150810,-500.0,0.00052054,31]
[312866408,1706379150836,-500.0,0.00052054,31]
[312866409,1706379150860,-8319.44,0.00052054,31]
[312866410,1706379150882,-500.0,0.00052328,31]
[312866411,1706379150905,-500.0,0.00052328,31]
[312866412,1706379150927,-8319.44,0.00052328,31]
[312866413,1706379150950,-500.0,0.00052602,31]
[312866414,1706379150974,-500.0,0.00052602,31]
[312866415,1706379150996,-8319.44,0.00052602,31]
[312866416,1706379151021,-500.0,0.00052876,31]
[312866417,1706379151044,-500.0,0.00052876,31]
[312866418,1706379151066,-8319.44,0.00052876,31]
[312866419,1706379151204,-154.31751203,0.00052965,60]
[312866420,1706379151230,-155.33899776,0.0005309,60]
[312866421,1706379151252,-157.2917405,0.00053093,60]
[312866422,1706379151276,-500.0,0.0005315,31]
[312866423,1706379151301,-500.0,0.0005315,31]
[312866424,1706379151325,-8319.44,0.0005315,31]
[312866425,1706379151349,-157.2917405,0.00053191,60]
[312866426,1706379151372,-155.33899776,0.00053371,60]
[312866427,1706379151394,-157.2917405,0.00053393,60]
[312866428,1706379151420,-416.86486688,0.00053424,31]
[312866429,1706379151446,-500.0,0.00053424,31]
[312866430,1706379151472,-8319.44,0.00053424,31]
[312866431,1706379151494,-153.75109056,0.00053435,60]
[312866432,1706379151517,-153.75109056,0.0005344,60]
[312866433,1706379151543,-500.0,0.00053698,31]
[312866434,1706379151570,-8319.44,0.00053698,31]
[312866435,1706379151595,-153.75109056,0.00053702,60]
[312866436,1706379151618,-157.2917405,0.0005394,60]
[312866437,1706379151645,-500.0,0.00053972,31]
[312866438,1706379151669,-86937.40610265,0.0005398,30]
[312866439,1706379151696,-50000.0,0.00054,44]
[312866440,1706379151721,-3145.35468259,0.00054,120]
[312866441,1706379151746,-14911.4362324,0.00054,30]
[312866442,1706379151772,-344.93915878,0.00054,90]
[312866443,1706379151795,-500000.0,0.00054,120]
[312866444,1706379151818,-85771.06753536,0.00054,120]
[312866445,1706379151843,-1247.79091052,0.00054,45]
[312866446,1706379151866,-227.84707829,0.00054,45]
[312866447,1706379151891,-636.96171454,0.00054,45]
[312866448,1706379151915,-1467.54642921,0.00054,45]
[312866449,1706379151941,-781.45110376,0.00054,45]
[312866450,1706379151968,-4238.43437167,0.00054,45]
[312866451,1706379151991,-298.19783799,0.00054,45]
[312866452,1706379152014,-1000.0,0.00054,45]
[312866453,1706379152037,-395.53419492,0.00054,45]
[312866454,1706379152061,-243.50947184,0.00054,45]
[312866455,1706379152084,-304.93992846,0.00054,45]
[312866456,1706379152109,-725.11224115,0.00054,45]
[312866457,1706379152132,-907.45234376,0.00054,45]
[312866458,1706379152155,-557.31873095,0.00054,45]
[312866459,1706379152179,-1922.64477373,0.00054,45]
[312866460,1706379152203,-733.77321461,0.00054,45]
[312866461,1706379152227,-1965.15249024,0.00054,45]
[312866462,1706379152252,-969.55964124,0.00054,45]
[312866463,1706379152275,-639.73455989,0.00054,45]
[312866464,1706379152299,-377.41841164,0.00054,45]
[312866465,1706379152323,-280.35459791,0.00054,45]
[312866466,1706379152349,-452.19978876,0.00054,45]
[312866467,1706379152373,-1115.62429243,0.00054,45]
[312866468,1706379152398,-1000.0,0.00054,45]
[312866469,1706379152425,-1524.99716627,0.00054,45]
[312866470,1706379152449,-660.39589314,0.00054,45]
[312866471,1706379152472,-490.72713269,0.00054,45]
[312866472,1706379152497,-3953.51117444,0.00054,45]
[312866473,1706379152521,-1000.0,0.00054,45]
[312866474,1706379152545,-399.04348072,0.00054,45]
[312866475,1706379152567,-154.07054022,0.00054076,60]
[312866476,1706379152590,-433.21314214,0.00054124,60]
[312866477,1706379152616,-193.883,0.00054192,120]
[312866478,1706379152640,-433.21314214,0.00054228,60]
[312866479,1706379152664,-154.96921689,0.0005423,30]
[312866480,1706379152686,-433.21314214,0.00054245,60]
[312866481,1706379152708,-543.22,0.00054246,120]
[312866482,1706379152729,-500.0,0.00054246,120]
[312866483,1706379152753,-500.0,0.00054246,120]
[312866484,1706379152777,-500.0,0.00054246,120]
[312866485,1706379152799,-500.0,0.00054246,120]
[312866486,1706379152821,-750.85,0.00054246,120]
[312866487,1706379152843,-500.0,0.00054246,120]
[312866488,1706379152865,-1442.38,0.00054246,120]
[312866489,1706379152889,-269.74545221,0.00054246,120]
[312866490,1706379152912,-500.0,0.00054246,120]
[312866491,1706379152934,-244.18703101,0.00054246,120]
[312866492,1706379152957,-493.5862242,0.00054246,120]
[312866493,1706379152980,-500.0,0.00054246,120]
[312866494,1706379153002,-5652.0,0.00054246,120]
[312866495,1706379153029,-530.05418202,0.00054246,120]
[312866496,1706379153052,-497.87026,0.00054246,120]
[312866497,1706379153075,-500.0,0.00054246,120]
[312866498,1706379153098,-659.04,0.00054246,31]
[312866499,1706379153123,-500.0,0.00054246,31]
[312866500,1706379153146,-623.67,0.00054246,31]
[312866501,1706379153170,-545.54,0.00054246,31]
[312866502,1706379153193,-500.0,0.00054246,31]
[312866503,1706379153216,-1041.23,0.00054246,31]
[312866504,1706379153239,-628.12,0.00054246,31]
[312866505,1706379153262,-500.0,0.00054246,31]
[312866506,1706379153285,-500.0,0.00054246,31]
[312866507,1706379153308,-1014.91,0.00054246,31]
[312866508,1706379153332,-698.6,0.00054246,31]
[312866509,1706379153354,-500.0,0.00054246,31]
[312866510,1706379153376,-527.62,0.00054246,31]
[312866511,1706379153400,-866.97,0.00054246,31]
[312866512,1706379153427,-500.0,0.00054246,31]
[312866513,1706379153452,-500.0,0.00054246,31]
[312866514,1706379153488,-500.0,0.00054246,31]
[312866515,1706379153511,-500.0,0.00054246,31]
[312866516,1706379153533,-150.0,0.00054247,30]
[312866517,1706379153555,-150.0,0.00054247,30]
[312866518,1706379153578,-150.0,0.00054247,30]
[312866519,1706379153601,-150.0,0.00054247,30]
[312866520,1706379153728,-150.0,0.00054247,30]
[312866521,1706379153757,-150.0,0.00054247,30]
[312866522,1706379153781,-150.0,0.00054247,30]
[312866523,1706379153813,-150.0,0.00054247,30]
[312866524,1706379153835,-150.0,0.00054247,30]
[312866525,1706379153857,-150.0,0.00054247,30]
[312866526,1706379153879,-150.0,0.00054247,30]
[312866527,1706379153901,-433.21314214,0.00054276,60]
[312866528,1706379153923,-500.0,0.0005438,30]
[312866529,1706379153946,-500.0,0.0005438,30]
[312866530,1706379153972,-500.0,0.0005438,30]
[312866531,1706379153994,-500.0,0.0005438,30]
[312866532,1706379154017,-511.04172696,0.0005438,30]
[312866533,1706379154042,-233.0,0.000544,120]
[312866534,1706379154080,-193.883,0.00054493,120]
[312866535,1706379154119,-151.0127,0.00054498,59]
[312866536,1706379154145,-45000.0,0.000545,120]
[312866537,1706379154175,-543.22,0.0005452,120]
[312866538,1706379154201,-500.0,0.0005452,120]
[312866539,1706379154226,-500.0,0.0005452,120]
[312866540,1706379154254,-500.0,0.0005452,120]
[312866541,1706379154279,-500.0,0.0005452,120]
[312866542,1706379154303,-750.85,0.0005452,120]
[312866543,1706379154328,-514.49919765,0.0005452,120]
[312866544,1706379154351,-1442.38,0.0005452,120]
[312866545,1706379154376,-500.0,0.0005452,120]
[312866546,1706379154401,-500.0,0.0005452,120]
[312866547,1706379154428,-5652.0,0.0005452,120]
[312866548,1706379154452,-500.0,0.0005452,120]
[312866549,1706379154476,-659.04,0.0005452,120]
[312866550,1706379154501,-500.0,0.0005452,120]
[312866551,1706379154524,-623.67,0.0005452,120]
[312866552,1706379154548,-545.54,0.0005452,120]
[312866553,1706379154573,-500.0,0.0005452,120]
[312866554,1706379154597,-1041.23,0.0005452,120]
[312866555,1706379154620,-628.12,0.0005452,120]
[312866556,1706379154645,-634.72926927,0.0005452,120]
[312866557,1706379154679,-500.0,0.0005452,120]
[312866558,1706379154703,-1014.91,0.0005452,120]
[312866559,1706379154728,-698.6,0.0005452,120]
[312866560,1706379154756,-500.0,0.0005452,120]
[312866561,1706379154781,-527.62,0.0005452,120]
[312866562,1706379154804,-866.97,0.0005452,120]
[312866563,1706379154831,-500.0,0.0005452,120]
[312866564,1706379154857,-500.0,0.0005452,120]
[312866565,1706379154881,-500.0,0.0005452,120]
[312866566,1706379154905,-500.0,0.0005452,120]
[312866567,1706379154929,-156.04772984,0.00054639,60]
[312866568,1706379154951,-157.2917405,0.00054671,60]
[312866569,1706379154974,-155.33899776,0.00054686,60]
[312866570,1706379154998,-2025.0,0.000547,117]
[312866571,1706379155022,-154.96921689,0.0005473,30]
[312866572,1706379155047,-500.0,0.0005474,120]
[312866573,1706379155074,-193.883,0.00054767,120]
[312866574,1706379155097,-543.22,0.00054794,120]
[312866575,1706379155125,-500.0,0.00054794,120]
[312866576,1706379155150,-500.0,0.00054794,120]
[312866577,1706379155173,-547.58030855,0.00054794,120]
[312866578,1706379155198,-500.0,0.00054794,120]
[312866579,1706379155222,-750.85,0.00054794,120]
[312866580,1706379155245,-1442.38,0.00054794,120]
[312866581,1706379155270,-532.33045547,0.00054794,120]
[312866582,1706379155294,-175.3026032,0.00054794,120]
[312866583,1706379155317,-5652.0,0.00054794,120]
[312866584,1706379155341,-2334.31919375,0.00054794,120]
[312866585,1706379155365,-500.0,0.00054794,120]
[312866586,1706379155388,-659.04,0.00054794,120]
[312866587,1706379155417,-500.0,0.00054794,120]
[312866588,1706379155440,-623.67,0.00054794,120]
[312866589,1706379155464,-545.54,0.00054794,120]
[312866590,1706379155493,-500.0,0.00054794,120]
[312866591,1706379155520,-1041.23,0.00054794,120]
[312866592,1706379155545,-628.12,0.00054794,120]
[312866593,1706379155570,-500.0,0.00054794,120]
[312866594,1706379155597,-1014.91,0.00054794,120]
[312866595,1706379155622,-698.6,0.00054794,120]
[312866596,1706379155647,-500.0,0.00054794,120]
[312866597,1706379155672,-527.62,0.00054794,120]
[312866598,1706379155697,-866.97,0.00054794,120]
[312866599,1706379155722,-500.0,0.00054794,120]
[312866600,1706379155745,-500.0,0.00054794,120]
[312866601,1706379155771,-20000.0,0.00054794,30]
[312866602,1706379155794,-20000.0,0.00054794,30]
[312866603,1706379155818,-13610.18488372,0.00054794,30]
[312866604,1706379155842,-500.0,0.00054794,120]
[312866605,1706379155867,-500.0,0.00054794,120]
[312866606,1706379155890,-12900.63,0.00054795,30]
[312866607,1706379156041,433.21314214,0.0005466,60]
[312866608,1706379156075,8319.44,0.00053972,31]
[312866609,1706379156113,8319.44,0.00054246,31]
[312866610,1706379156142,153.75109056,0.00054785,60]
[312866611,1706379156364,8319.44,0.0005452,120]
[312866612,1706379156408,189.73656668,0.0005389,120]
[312866613,1706379156441,8319.44,0.00054794,120]
[312866614,1706379156767,718.13332235,0.00022077,2]
[312866615,1706379159173,4474.5,0.00052054,31]
[312866616,1706379159463,4474.5,0.00052328,31]
[312866617,1706379159730,4474.5,0.00052602,31]
[312866618,1706379160017,4474.5,0.00052876,31]
[312866619,1706379160296,4474.5,0.0005315,31]
[312866620,1706379160550,4474.5,0.00053424,31]
[312866621,1706379160836,4474.5,0.00053698,31]
[312866622,1706379161112,4474.5,0.00053972,31]
[312866623,1706379161388,4474.5,0.00054246,31]
[312866624,1706379161990,4474.5,0.0005452,120]
[312866625,1706379162286,4474.5,0.00054794,120]
[312866626,1706379164928,359.7710561,0.0005,120]
[312866627,1706379166964,1279.87546383,0.00022768,5]
[312866628,1706379171327,125.36152188,0.00022,2]
[312866629,1706379171348,124.63847812,0.00022,2]
[312866630,1706379172604,250.0,0.00022274,2]
[312866631,1706379178338,5000.0,0.00042,35]
[312866632,1706379195148,366.11,0.00021389,2]
[312866633,1706379221603,150.0,0.00022,2]
[312866634,1706379227066,6514.01,0.00022467,2]
[312866635,1706379240270,23900.0,0.00022467,2]
[312866636,1706379257856,250.0,0.00022373,2]
[312866637,1706379272483,200.0,0.00022373,2]
[312866638,1706379276446,279.24,0.00022415,2]
[312866646,1706379398871,176.61,0.00021769,2]
[312866647,1706379400151,176.61,0.00022317,2]
[312866652,1706379484631,250.0,0.00022431,2]
[312866656,1706379511538,2000.0,0.00022431,2]
[312866657,1706379511896,232.0,0.00022431,2]
[312866660,1706379524399,200.0,0.00022431,2]
[312866661,1706379563829,160.16425758,0.00022448,2]
[312866663,1706379572636,200.0,0.00022431,2]
[312866664,1706379583358,150.0,0.00022383,2]
[312866665,1706379583839,8923.99,0.00022336,2]
[312866666,1706379601474,500.92,0.00022163,2]
[312866667,1706379659108,347.8,0.00020207,2]
[312866668,1706379659300,347.8,0.00022471,2]
[312866671,1706379685515,360.65,0.00022188,2]
[312866672,1706379685739,360.65,0.00022249,2]
[312866673,1706379685951,360.65,0.0002231,2]
[312866674,1706379686254,360.65,0.00022371,2]
[312866675,1706379686651,360.65,0.00022431,2]
[312866676,1706379686845,360.65,0.00022492,2]
[312866678,1706379697087,232.7,0.00021847,2]
[312866681,1706379718036,200.0,0.00021844,2]
[312866683,1706379797488,155.0,0.000225,2]
[312866684,1706379800603,155.0,0.000225,2]
[312866685,1706379803071,165.22,0.00021876,2]
[312866686,1706379902638,23900.0,0.00021828,2]
[312866688,1706379912814,250.0,0.00021828,2]
[312866691,1706379929945,814.4,0.00021828,2]
[312866692,1706379962299,2000.0,0.00021843,2]
[312866693,1706379995325,200.0,0.00021828,2]
[312866694,1706380006221,250.46,0.00021828,2]
[312866695,1706380016868,176.61,0.00021669,2]
[312866696,1706380018188,176.61,0.00022217,2]
[312866697,1706380044106,-155.0,0.00022507,2]
[312866698,1706380044127,-0.03467217,0.00022508,2]
[312866699,1706380115084,150.0,0.00021853,2]
[312866700,1706380131672,313.02,0.00019918,2]
[312866701,1706380131872,313.02,0.00022182,2]
[312866702,1706380147669,252.45,0.00022013,2]
[312866703,1706380147872,252.45,0.00022073,2]
[312866704,1706380148094,252.45,0.00022134,2]
[312866705,1706380148288,252.45,0.00022194,2]
[312866706,1706380148493,252.45,0.00022254,2]
[312866707,1706380148707,252.45,0.00022315,2]
[312866708,1706380148930,252.45,0.00022375,2]